fUSD/lending_fUSD_20250207
["ID","MTS","AMOUNT","RATE_DAILY","PERIOD"]
[352035080,1738891848008,-1730.29,0.00016711,2]
[352035082,1738891848016,-1730.29,0.00016711,2]
[352035084,1738891848025,-1730.29,0.00016711,2]
[352035086,1738891848034,-1730.29,0.00016711,2]
[352035088,1738891848043,-1730.29,0.00016711,2]
[352035090,1738891848053,-1730.29,0.00016711,2]
[352035092,1738891848073,-1730.29,0.00016711,2]
[352035094,1738891848090,-1730.29,0.00016711,2]
[352035096,1738891848101,-1730.29,0.00016711,2]
[352035098,1738891848111,-1730.29,0.00016711,2]
[352035100,1738891848123,-1730.4489148,0.00016711,2]
[352035102,1738891848134,-570.79,0.00016711,2]
[352035104,1738891848143,-999.0,0.00016711,2]
[352035106,1738891848154,-344.261869,0.00016712,2]
[352035108,1738891848164,-299.239034,0.00016712,2]
[352035110,1738891848175,-519.09,0.00016712,2]
[352035112,1738891848185,-500.0,0.00016712,2]
[352035114,1738891848195,-500.0,0.00016712,2]
[352035116,1738891848206,-500.0,0.00016712,2]
[352035118,1738891848216,-500.0,0.00016712,2]
[352035120,1738891848226,-500.0,0.00016712,2]
[352035122,1738891848236,-511.69007061,0.00016712,2]
[352035124,1738891848246,-500.0,0.00016712,2]
[352035126,1738891848256,-500.0,0.00016712,2]
[352035128,1738891848266,-500.0,0.00016712,2]
[352035130,1738891848276,-500.0,0.00016712,2]
[352035132,1738891848286,-500.0,0.00016712,2]
[352035134,1738891848296,-500.0,0.00016712,2]
[352035136,1738891848306,-500.0,0.00016712,2]
[352035138,1738891848316,-500.0,0.00016712,2]
[352035140,1738891848326,-500.0,0.00016712,2]
[352035142,1738891848336,-500.0,0.00016712,2]
[352035144,1738891848346,-500.0,0.00016712,2]
[352035146,1738891848356,-500.0,0.00016712,2]
[352035148,1738891848366,-500.0,0.00016712,2]
[352035150,1738891848376,-500.0,0.00016712,2]
[352035152,1738891848385,-500.0,0.00016712,2]
[352035154,1738891848394,-588.28,0.00016712,2]
[352035156,1738891848405,-500.0,0.00016712,2]
[352035158,1738891848415,-500.0,0.00016712,2]
[352035160,1738891848424,-500.0,0.00016712,2]
[352035161,1738891848434,-500.0,0.00016712,2]
[352035163,1738891848444,-500.0,0.00016712,2]
[352035165,1738891848454,-432.97261283,0.00016712,2]
[352035168,1738891848464,-154.96,0.00016712,2]
[352035169,1738891848474,-500.0,0.00016712,2]
[352035171,1738891848484,-313.51872455,0.00016712,2]
[352035174,1738891848497,-500.0,0.00016712,2]
[352035175,1738891848507,-500.0,0.00016712,2]
[352035177,1738891848517,-500.0,0.00016712,2]
[352035179,1738891848526,-500.0,0.00016712,2]
[352035181,1738891848537,-500.0,0.00016712,2]
[352035184,1738891848548,-500.0,0.00016712,2]
[352035186,1738891848558,-500.0,0.00016712,2]
[352035188,1738891848568,-500.0,0.00016712,2]
[352035190,1738891848578,-500.0,0.00016712,2]
[352035192,1738891848588,-256.47,0.00016712,2]
[352035194,1738891848598,-500.0,0.00016712,2]
[352035196,1738891848607,-214.19,0.00016712,2]
[352035198,1738891848617,-500.0,0.00016712,2]
[352035200,1738891848626,-500.0,0.00016712,2]
[352035202,1738891848636,-456.77,0.00016712,2]
[352035204,1738891848645,-500.0,0.00016712,2]
[352035206,1738891848656,-221.53,0.00016712,2]
[352035208,1738891848666,-150.86,0.00016712,2]
[352035210,1738891848676,-297.11,0.00016712,2]
[352035212,1738891848686,-500.0,0.00016712,2]
[352035214,1738891848696,-500.0,0.00016712,2]
[352035216,1738891848706,-500.0,0.00016712,2]
[352035218,1738891848714,-500.0,0.00016712,2]
[352035220,1738891848723,-500.0,0.00016712,2]
[352035222,1738891848733,-500.0,0.00016712,2]
[352035224,1738891848743,-516.33694279,0.00016712,2]
[352035226,1738891848754,-500.0,0.00016712,2]
[352035228,1738891848763,-500.0,0.00016712,2]
[352035230,1738891848773,-500.0,0.00016712,2]
[352035232,1738891848783,-500.0,0.00016712,2]
[352035234,1738891848793,-500.0,0.00016712,2]
[352035236,1738891848804,-500.0,0.00016712,2]
[352035238,1738891848815,-500.0,0.00016712,2]
[352035240,1738891848825,-500.0,0.00016712,2]
[352035242,1738891848835,-573.22355977,0.00016712,2]
[352035244,1738891848846,-500.0,0.00016712,2]
[352035246,1738891848855,-500.0,0.00016712,2]
[352035248,1738891848865,-500.0,0.00016712,2]
[352035268,1738891849063,-234.7,0.00016712,2]
[352035270,1738891849073,-500.0,0.00016712,2]
[352035272,1738891849084,-500.0,0.00016712,2]
[352035274,1738891849095,-356.46921484,0.00016712,2]
[352035276,1738891849105,-500.0,0.00016712,2]
[352035278,1738891849115,-516.5909168,0.00016712,2]
[352035280,1738891849125,-500.0,0.00016712,2]
[352035282,1738891849135,-500.0,0.00016712,2]
[352035284,1738891849144,-500.0,0.00016712,2]
[352035286,1738891849154,-500.0,0.00016712,2]
[352035288,1738891849163,-500.0,0.00016712,2]
[352035290,1738891849173,-500.0,0.00016712,2]
[352035292,1738891849183,-500.0,0.00016712,2]
[352035294,1738891849192,-500.0,0.00016712,2]
[352035296,1738891849202,-500.0,0.00016712,2]
[352035298,1738891849212,-367.74,0.00016712,2]
[352035300,1738891849222,-500.0,0.00016712,2]
[352035302,1738891849232,-500.0,0.00016712,2]
[352035304,1738891849242,-500.0,0.00016712,2]
[352035306,1738891849251,-500.0,0.00016712,2]
[352035308,1738891849261,-500.0,0.00016712,2]
[352035310,1738891849271,-500.0,0.00016712,2]
[352035312,1738891849281,-632.41,0.00016712,2]
[352035314,1738891849290,-610.95,0.00016712,2]
[352035316,1738891849300,-500.0,0.00016712,2]
[352035318,1738891849310,-500.0,0.00016712,2]
[352035320,1738891849319,-500.0,0.00016712,2]
[352035322,1738891849329,-500.0,0.00016712,2]
[352035324,1738891849339,-500.0,0.00016712,2]
[352035326,1738891849348,-485.33,0.00016712,2]
[352035328,1738891849358,-500.0,0.00016712,2]
[352035330,1738891849368,-500.0,0.00016712,2]
[352035332,1738891849377,-500.0,0.00016712,2]
[352035334,1738891849387,-500.0,0.00016712,2]
[352035336,1738891849397,-360.73,0.00016712,2]
[352035338,1738891849406,-500.0,0.00016712,2]
[352035340,1738891849416,-423.59026655,0.00016712,2]
[352035342,1738891849425,-500.0,0.00016712,2]
[352035344,1738891849435,-500.0,0.00016712,2]
[352035346,1738891849444,-500.0,0.00016712,2]
[352035348,1738891849455,-606.87,0.00016712,2]
[352035350,1738891849464,-500.0,0.00016712,2]
[352035352,1738891849474,-500.0,0.00016712,2]
[352035354,1738891849484,-367.05263474,0.00016712,2]
[352035356,1738891849498,-500.0,0.00016712,2]
[352035358,1738891849508,-595.3,0.00016712,2]
[352035360,1738891849517,-500.0,0.00016712,2]
[352035362,1738891849527,-500.0,0.00016712,2]
[352035364,1738891849539,-500.0,0.00016712,2]
[352035366,1738891849550,-500.0,0.00016712,2]
[352035368,1738891849560,-500.0,0.00016712,2]
[352035370,1738891849571,-554.66,0.00016712,2]
[352035372,1738891849581,-540.10769623,0.00016712,2]
[352035374,1738891849592,-506.05,0.00016712,2]
[352035376,1738891849602,-500.0,0.00016712,2]
[352035378,1738891849612,-500.0,0.00016712,2]
[352035380,1738891849622,-539.2,0.00016712,2]
[352035383,1738891849632,-345.86937861,0.00016712,2]
[352035384,1738891849642,-512.39,0.00016712,2]
[352035387,1738891849651,-500.0,0.00016712,2]
[352035389,1738891849660,-500.0,0.00016712,2]
[352035391,1738891849670,-500.0,0.00016712,2]
[352035393,1738891849679,-500.0,0.00016712,2]
[352035395,1738891849689,-500.0,0.00016712,2]
[352035396,1738891849698,-500.0,0.00016712,2]
[352035399,1738891849715,-500.0,0.00016712,2]
[352035401,1738891849724,-500.0,0.00016712,2]
[352035403,1738891849734,-500.0,0.00016712,2]
[352035404,1738891849743,-500.0,0.00016712,2]
[352035406,1738891849753,-500.0,0.00016712,2]
[352035409,1738891849762,-500.0,0.00016712,2]
[352035411,1738891849772,-500.0,0.00016712,2]
[352035412,1738891849781,-500.0,0.00016712,2]
[352035415,1738891849791,-500.0,0.00016712,2]
[352035416,1738891849800,-435.18,0.00016712,2]
[352035418,1738891849810,-500.0,0.00016712,2]
[352035421,1738891849820,-500.0,0.00016712,2]
[352035423,1738891849829,-500.0,0.00016712,2]
[352035424,1738891849838,-500.0,0.00016712,2]
[352035427,1738891849848,-500.0,0.00016712,2]
[352035429,1738891849858,-500.0,0.00016712,2]
[352035431,1738891849868,-594.62,0.00016712,2]
[352035433,1738891849881,-500.0,0.00016712,2]
[352035434,1738891849890,-500.0,0.00016712,2]
[352035436,1738891849903,-500.0,0.00016712,2]
[352035438,1738891849912,-500.0,0.00016712,2]
[352035441,1738891849922,-610.0522004,0.00016712,2]
[352035443,1738891849932,-500.0,0.00016712,2]
[352035445,1738891849941,-543.62,0.00016712,2]
[352035447,1738891849952,-430.75,0.00016712,2]
[352035449,1738891849963,-500.0,0.00016712,2]
[352035450,1738891849972,-500.0,0.00016712,2]
[352035452,1738891849981,-500.0,0.00016712,2]
[352035454,1738891849990,-199.11,0.00016712,2]
[352035456,1738891850000,-500.0,0.00016712,2]
[352035459,1738891850010,-500.0,0.00016712,2]
[352035461,1738891850019,-500.0,0.00016712,2]
[352035462,1738891850029,-610.94,0.00016712,2]
[352035465,1738891850039,-314.27,0.00016712,2]
[352035466,1738891850048,-500.0,0.00016712,2]
[352035468,1738891850057,-500.0,0.00016712,2]
[352035470,1738891850067,-500.0,0.00016712,2]
[352035473,1738891850077,-726.65,0.00016712,2]
[352035475,1738891850087,-500.0,0.00016712,2]
[352035477,1738891850096,-166.29,0.00016712,2]
[352035478,1738891850106,-500.0,0.00016712,2]
[352035480,1738891850115,-621.44,0.00016712,2]
[352035481,1738891850124,-500.0,0.00016712,2]
[352035482,1738891850133,-500.0,0.00016712,2]
[352035483,1738891850151,-500.0,0.00016712,2]
[352035484,1738891850162,-500.0,0.00016712,2]
[352035485,1738891850172,-500.0,0.00016712,2]
[352035486,1738891850182,-500.0,0.00016712,2]
[352035487,1738891850192,-500.0,0.00016712,2]
[352035488,1738891850204,-500.0,0.00016712,2]
[352035489,1738891850214,-500.0,0.00016712,2]
[352035490,1738891850224,-500.0,0.00016712,2]
[352035492,1738891850234,-500.0,0.00016712,2]
[352035494,1738891850243,-790.9,0.00016712,2]
[352035497,1738891850257,-500.0,0.00016712,2]
[352035499,1738891850270,-500.0,0.00016712,2]
[352035501,1738891850281,-500.0,0.00016712,2]
[352035503,1738891850292,-500.0,0.00016712,2]
[352035505,1738891850302,-500.0,0.00016712,2]
[352035507,1738891850312,-500.0,0.00016712,2]
[352035509,1738891850323,-500.0,0.00016712,2]
[352035511,1738891850334,-500.0,0.00016712,2]
[352035513,1738891850344,-500.0,0.00016712,2]
[352035515,1738891850354,-500.0,0.00016712,2]
[352035517,1738891850364,-500.0,0.00016712,2]
[352035519,1738891850374,-526.09,0.00016712,2]
[352035522,1738891850384,-500.0,0.00016712,2]
[352035524,1738891850394,-500.0,0.00016712,2]
[352035526,1738891850404,-500.0,0.00016712,2]
[352035528,1738891850414,-500.0,0.00016712,2]
[352035530,1738891850424,-500.0,0.00016712,2]
[352035532,1738891850434,-500.0,0.00016712,2]
[352035534,1738891850444,-568.75,0.00016712,2]
[352035536,1738891850457,-723.88,0.00016712,2]
[352035538,1738891850467,-500.0,0.00016712,2]
[352035540,1738891850477,-500.0,0.00016712,2]
[352035542,1738891850487,-500.0,0.00016712,2]
[352035544,1738891850500,-500.0,0.00016712,2]
[352035546,1738891850510,-500.0,0.00016712,2]
[352035548,1738891850520,-500.0,0.00016712,2]
[352035550,1738891850530,-594.93000716,0.00016712,2]
[352035552,1738891850542,-2455.05,0.00016712,2]
[352035555,1738891850551,-500.0,0.00016712,2]
[352035557,1738891850562,-500.0,0.00016712,2]
[352035558,1738891850573,-500.0,0.00016712,2]
[352035561,1738891850584,-1078.11,0.00016712,2]
[352035563,1738891850594,-500.0,0.00016712,2]
[352035565,1738891850604,-554.71,0.00016712,2]
[352035567,1738891850614,-743.03,0.00016712,2]
[352035569,1738891850624,-500.0,0.00016712,2]
[352035571,1738891850633,-500.0,0.00016712,2]
[352035573,1738891850644,-500.0,0.00016712,2]
[352035575,1738891850654,-914.09,0.00016712,2]
[352035577,1738891850664,-1005.93,0.00016712,2]
[352035579,1738891850677,-500.0,0.00016712,2]
[352035581,1738891850688,-583.56,0.00016712,2]
[352035584,1738891850698,-500.0,0.00016712,2]
[352035586,1738891850712,-956.66,0.00016712,2]
[352035588,1738891850723,-593.32,0.00016712,2]
[352035590,1738891850733,-1106.91,0.00016712,2]
[352035592,1738891850743,-500.0,0.00016712,2]
[352035594,1738891850753,-500.0,0.00016712,2]
[352035596,1738891850764,-739.72,0.00016712,2]
[352035598,1738891850774,-500.0,0.00016712,2]
[352035599,1738891850784,-573.76,0.00016712,2]
[352035600,1738891850794,-500.0,0.00016712,2]
[352035601,1738891850805,-744.8,0.00016712,2]
[352035602,1738891850816,-857.32,0.00016712,2]
[352035603,1738891850826,-500.0,0.00016712,2]
[352035604,1738891850836,-500.0,0.00016712,2]
[352035605,1738891850846,-604.79,0.00016712,2]
[352035606,1738891850856,-1521.13,0.00016712,2]
[352035607,1738891850866,-1059.01,0.00016712,2]
[352035608,1738891850876,-649.01,0.00016712,2]
[352035609,1738891850887,-1014.75,0.00016712,2]
[352035611,1738891850897,-500.0,0.00016712,2]
[352035613,1738891850907,-500.0,0.00016712,2]
[352035614,1738891850918,-500.0,0.00016712,2]
[352035615,1738891850927,-627.69,0.00016712,2]
[352035616,1738891850937,-500.0,0.00016712,2]
[352035617,1738891850947,-500.0,0.00016712,2]
[352035618,1738891850960,-828.69,0.00016712,2]
[352035619,1738891850970,-545.06,0.00016712,2]
[352035620,1738891850980,-500.0,0.00016712,2]
[352035621,1738891850991,-500.0,0.00016712,2]
[352035623,1738891851001,-500.0,0.00016712,2]
[352035624,1738891851011,-500.0,0.00016712,2]
[352035625,1738891851025,-500.0,0.00016712,2]
[352035626,1738891851035,-2044.42,0.00016712,2]
[352035627,1738891851045,-500.0,0.00016712,2]
[352035628,1738891851055,-500.0,0.00016712,2]
[352035629,1738891851065,-500.0,0.00016712,2]
[352035630,1738891851075,-500.0,0.00016712,2]
[352035631,1738891851085,-1240.11,0.00016712,2]
[352035632,1738891851095,-873.51,0.00016712,2]
[352035633,1738891851105,-500.0,0.00016712,2]
[352035634,1738891851116,-500.0,0.00016712,2]
[352035635,1738891851126,-851.17,0.00016712,2]
[352035636,1738891851136,-1290.66,0.00016712,2]
[352035637,1738891851147,-500.0,0.00016712,2]
[352035638,1738891851157,-500.0,0.00016712,2]
[352035639,1738891851167,-1092.65,0.00016712,2]
[352035640,1738891851178,-1808.83,0.00016712,2]
[352035641,1738891851188,-500.0,0.00016712,2]
[352035642,1738891851199,-1000.0,0.00016712,2]
[352035643,1738891851212,-794.89,0.00016712,2]
[352035644,1738891851222,-1264.71,0.00016712,2]
[352035645,1738891851233,-975.86,0.00016712,2]
[352035646,1738891851243,-500.0,0.00016712,2]
[352035647,1738891851253,-500.0,0.00016712,2]
[352035648,1738891851263,-863.62,0.00016712,2]
[352035649,1738891851273,-500.0,0.00016712,2]
[352035650,1738891851284,-1311.47,0.00016712,2]
[352035651,1738891851294,-500.0,0.00016712,2]
[352035652,1738891851304,-1084.15,0.00016712,2]
[352035653,1738891851314,-500.0,0.00016712,2]
[352035654,1738891851324,-500.0,0.00016712,2]
[352035655,1738891851333,-500.0,0.00016712,2]
[352035656,1738891851343,-500.0,0.00016712,2]
[352035657,1738891851354,-500.0,0.00016712,2]
[352035658,1738891851367,-1214.06,0.00016712,2]
[352035659,1738891851377,-500.0,0.00016712,2]
[352035660,1738891851387,-500.0,0.00016712,2]
[352035661,1738891851397,-500.0,0.00016712,2]
[352035662,1738891851408,-949.27,0.00016712,2]
[352035663,1738891851418,-1004.21,0.00016712,2]
[352035664,1738891851428,-500.0,0.00016712,2]
[352035665,1738891851439,-500.0,0.00016712,2]
[352035666,1738891851449,-1041.39,0.00016712,2]
[352035667,1738891851461,-500.0,0.00016712,2]
[352035668,1738891851471,-1554.12,0.00016712,2]
[352035669,1738891851481,-832.98,0.00016712,2]
[352035670,1738891851492,-500.0,0.00016712,2]
[352035671,1738891851502,-500.0,0.00016712,2]
[352035672,1738891851512,-575.57,0.00016712,2]
[352035673,1738891851523,-971.04,0.00016712,2]
[352035674,1738891851533,-828.01,0.00016712,2]
[352035675,1738891851543,-541.25,0.00016712,2]
[352035676,1738891851553,-1162.45,0.00016712,2]
[352035677,1738891851563,-1340.22,0.00016712,2]
[352035678,1738891851574,-500.0,0.00016712,2]
[352035679,1738891851676,-500.0,0.00016712,2]
[352035680,1738891851686,-500.0,0.00016712,2]
[352035681,1738891851695,-1752.33,0.00016712,2]
[352035682,1738891851705,-927.71,0.00016712,2]
[352035683,1738891851715,-2972.98,0.00016712,2]
[352035684,1738891851724,-500.0,0.00016712,2]
[352035685,1738891851734,-869.48,0.00016712,2]
[352035686,1738891851743,-871.64,0.00016712,2]
[352035687,1738891851754,-1755.62,0.00016712,2]
[352035688,1738891851764,-500.0,0.00016712,2]
[352035689,1738891851774,-500.0,0.00016712,2]
[352035690,1738891851784,-500.0,0.00016712,2]
[352035691,1738891851794,-500.0,0.00016712,2]
[352035692,1738891851804,-500.0,0.00016712,2]
[352035693,1738891851814,-701.5,0.00016712,2]
[352035694,1738891851824,-500.0,0.00016712,2]
[352035695,1738891851834,-1478.42,0.00016712,2]
[352035696,1738891851844,-296.9709335,0.00016712,2]
[352035697,1738891851853,-1555.2,0.00016712,2]
[352035698,1738891851862,-500.0,0.00016712,2]
[352035699,1738891851872,-809.23,0.00016712,2]
[352035700,1738891851881,-500.0,0.00016712,2]
[352035701,1738891851891,-1405.48,0.00016712,2]
[352035702,1738891851901,-535.43,0.00016712,2]
[352035703,1738891851911,-500.0,0.00016712,2]
[352035704,1738891851920,-500.0,0.00016712,2]
[352035705,1738891851930,-500.0,0.00016712,2]
[352035706,1738891851939,-1469.96,0.00016712,2]
[352035707,1738891851948,-500.0,0.00016712,2]
[352035708,1738891851960,-500.0,0.00016712,2]
[352035709,1738891851969,-802.09,0.00016712,2]
[352035710,1738891851978,-500.0,0.00016712,2]
[352035711,1738891851987,-1545.02,0.00016712,2]
[352035712,1738891851996,-500.0,0.00016712,2]
[352035713,1738891852005,-1249.08,0.00016712,2]
[352035715,1738891852023,-809.86,0.00016712,2]
[352035716,1738891852034,-1664.37,0.00016712,2]
[352035717,1738891852043,-500.0,0.00016712,2]
[352035718,1738891852054,-500.0,0.00016712,2]
[352035719,1738891852063,-500.0,0.00016712,2]
[352035720,1738891852073,-601.3,0.00016712,2]
[352035721,1738891852083,-500.0,0.00016712,2]
[352035722,1738891852093,-855.96,0.00016712,2]
[352035723,1738891852103,-1956.41,0.00016712,2]
[352035724,1738891852113,-3154.16,0.00016712,2]
[352035725,1738891852122,-500.0,0.00016712,2]
[352035726,1738891852131,-500.0,0.00016712,2]
[352035727,1738891852141,-500.0,0.00016712,2]
[352035728,1738891852151,-500.0,0.00016712,2]
[352035729,1738891852161,-500.0,0.00016712,2]
[352035730,1738891852170,-500.0,0.00016712,2]
[352035731,1738891852179,-1185.11,0.00016712,2]
[352035732,1738891852189,-500.0,0.00016712,2]
[352035733,1738891852199,-1040.84,0.00016712,2]
[352035734,1738891852211,-500.0,0.00016712,2]
[352035735,1738891852222,-1478.69,0.00016712,2]
[352035736,1738891852231,-500.0,0.00016712,2]
[352035737,1738891852241,-500.0,0.00016712,2]
[352035738,1738891852250,-690.83,0.00016712,2]
[352035739,1738891852260,-500.0,0.00016712,2]
[352035740,1738891852269,-500.0,0.00016712,2]
[352035741,1738891852279,-343.52,0.00016712,2]
[352035742,1738891852288,-500.0,0.00016712,2]
[352035743,1738891852298,-500.0,0.00016712,2]
[352035744,1738891852308,-500.0,0.00016712,2]
[352035745,1738891852318,-500.0,0.00016712,2]
[352035746,1738891852328,-2562.17,0.00016712,2]
[352035747,1738891852337,-1290.1,0.00016712,2]
[352035748,1738891852347,-500.0,0.00016712,2]
[352035749,1738891852357,-511.37030246,0.00016712,2]
[352035750,1738891852367,-500.0,0.00016712,2]
[352035751,1738891852377,-500.0,0.00016712,2]
[352035752,1738891852387,-911.96,0.00016712,2]
[352035753,1738891852396,-500.0,0.00016712,2]
[352035754,1738891852406,-970.24,0.00016712,2]
[352035755,1738891852416,-534.51,0.00016712,2]
[352035756,1738891852426,-500.0,0.00016712,2]
[352035757,1738891852436,-500.0,0.00016712,2]
[352035758,1738891852446,-500.0,0.00016712,2]
[352035759,1738891852460,-1791.15,0.00016712,2]
[352035760,1738891852469,-500.0,0.00016712,2]
[352035761,1738891852479,-1004.37,0.00016712,2]
[352035762,1738891852491,-767.89,0.00016712,2]
[352035763,1738891852502,-500.0,0.00016712,2]
[352035764,1738891852512,-500.0,0.00016712,2]
[352035765,1738891852521,-500.0,0.00016712,2]
[352035766,1738891852533,-867.53,0.00016712,2]
[352035767,1738891852543,-500.0,0.00016712,2]
[352035768,1738891852552,-504.28746169,0.00016712,2]
[352035769,1738891852562,-500.0,0.00016712,2]
[352035770,1738891852574,-500.0,0.00016712,2]
[352035771,1738891852584,-500.0,0.00016712,2]
[352035772,1738891852594,-500.0,0.00016712,2]
[352035773,1738891852604,-847.38,0.00016712,2]
[352035774,1738891852613,-500.0,0.00016712,2]
[352035775,1738891852623,-500.0,0.00016712,2]
[352035776,1738891852634,-500.0,0.00016712,2]
[352035777,1738891852644,-500.0,0.00016712,2]
[352035778,1738891852654,-500.0,0.00016712,2]
[352035779,1738891852666,-910.03,0.00016712,2]
[352035780,1738891852676,-1823.04,0.00016712,2]
[352035781,1738891852687,-500.0,0.00016712,2]
[352035782,1738891852697,-500.0,0.00016712,2]
[352035783,1738891852715,-925.64,0.00016712,2]
[352035784,1738891852726,-500.0,0.00016712,2]
[352035785,1738891852737,-500.0,0.00016712,2]
[352035786,1738891852748,-504.70044535,0.00016712,2]
[352035787,1738891852758,-500.0,0.00016712,2]
[352035788,1738891852768,-500.0,0.00016712,2]
[352035789,1738891852778,-500.0,0.00016712,2]
[352035790,1738891852788,-661.56,0.00016712,2]
[352035791,1738891852798,-500.0,0.00016712,2]
[352035792,1738891852808,-1515.23,0.00016712,2]
[352035793,1738891852818,-743.56,0.00016712,2]
[352035794,1738891852828,-882.91,0.00016712,2]
[352035795,1738891852839,-500.0,0.00016712,2]
[352035796,1738891852850,-500.0,0.00016712,2]
[352035797,1738891852860,-500.0,0.00016712,2]
[352035798,1738891852870,-183.61,0.00016712,2]
[352035799,1738891852880,-150.0,0.00016729,2]
[352035800,1738891852889,-150.0,0.00016738,2]
[352035801,1738891852899,-150.0,0.00016747,2]
[352035802,1738891852909,-150.0,0.0001675,2]
[352035803,1738891852919,-225.0,0.00016764,2]
[352035804,1738891852929,-200.0,0.00016766,2]
[352035805,1738891852940,-500.0,0.00016773,2]
[352035806,1738891852949,-500.0,0.00016773,2]
[352035807,1738891852964,-12748.8999414,0.00016781,7]
[352035808,1738891852974,-47398.2106929,0.00016781,7]
[352035809,1738891852983,-1000.0,0.00016782,2]
[352035810,1738891852994,-150.0,0.00016795,2]
[352035811,1738891853003,-8004.187859,0.000168,2]
[352035812,1738891853013,-268.79,0.00016813,2]
[352035813,1738891853024,-160.5,0.00016813,2]
[352035814,1738891853033,-150.0,0.00016818,2]
[352035815,1738891853043,-150.0,0.00016829,2]
[352035816,1738891853053,-150.0,0.00016841,2]
[352035817,1738891853063,-150.0,0.00016846,2]
[352035818,1738891853072,-161.43560522,0.00016848,2]
[352035819,1738891853082,-570.79,0.00016848,2]
[352035820,1738891853092,-344.261869,0.00016849,2]
[352035821,1738891853102,-299.239034,0.00016849,2]
[352035822,1738891853113,-500.0,0.00016849,2]
[352035823,1738891853123,-290.24447486,0.00016849,2]
[352035824,1738891853132,-225.16,0.00016849,2]
[352035825,1738891853143,-500.0,0.00016849,2]
[352035826,1738891853152,-500.0,0.00016849,2]
[352035827,1738891853162,-500.0,0.00016849,2]
[352035828,1738891853172,-500.0,0.00016849,2]
[352035829,1738891853182,-500.0,0.00016849,2]
[352035830,1738891853191,-500.0,0.00016849,2]
[352035831,1738891853202,-500.0,0.00016849,2]
[352035832,1738891853213,-500.0,0.00016849,2]
[352035833,1738891853223,-500.0,0.00016849,2]
[352035834,1738891853233,-359.11,0.00016849,2]
[352035835,1738891853243,-500.0,0.00016849,2]
[352035836,1738891853253,-500.0,0.00016849,2]
[352035837,1738891853262,-500.0,0.00016849,2]
[352035838,1738891853272,-500.0,0.00016849,2]
[352035839,1738891853282,-554.34,0.00016849,2]
[352035840,1738891853292,-500.0,0.00016849,2]
[352035841,1738891853302,-500.0,0.00016849,2]
[352035842,1738891853311,-265.28,0.00016849,2]
[352035843,1738891853321,-500.0,0.00016849,2]
[352035844,1738891853331,-500.0,0.00016849,2]
[352035845,1738891853340,-500.0,0.00016849,2]
[352035846,1738891853350,-500.0,0.00016849,2]
[352035847,1738891853360,-500.0,0.00016849,2]
[352035848,1738891853370,-554.65637735,0.00016849,2]